bitfinex/quotes_BTCUSD_20240727
["timestamp","ask_amount","ask_price","bid_price","bid_amount"]
[1722077383308,0.02382913,68251.0,68250.0,1.0299027]
[1722077383607,0.0299026,68251.0,68250.0,1.0299027]
[1722077386778,0.0299026,68251.0,68250.0,1.3229427]
[1722077386995,0.02990261,68251.0,68250.0,1.3229427]
[1722077390203,0.05289655,68251.0,68250.0,1.3229427]
[1722077390649,0.02990261,68251.0,68250.0,1.3229427]
[1722077393466,0.05289649,68251.0,68250.0,1.3229427]
[1722077393674,0.04682301,68251.0,68250.0,1.3229427]
[1722077394908,0.02382913,68251.0,68250.0,1.3229427]
[1722077395833,0.02382913,68251.0,68250.0,1.3244969]
[1722077396511,0.02382913,68251.0,68250.0,1.3229427]
[1722077397267,0.02990262,68251.0,68250.0,1.3229427]
[1722077397624,0.02990259,68251.0,68250.0,1.3229427]
[1722077398513,0.02382913,68251.0,68250.0,1.3229427]
[1722077399047,0.02382913,68251.0,68250.0,1.3244969]
[1722077399456,0.02382913,68251.0,68250.0,1.3744969]
[1722077399656,0.02382913,68251.0,68250.0,1.3229427]
[1722077400087,0.02382913,68251.0,68250.0,1.6659827]
[1722077400318,0.02382913,68251.0,68250.0,2.18999362]
[1722077400319,0.00084,68251.0,68250.0,2.18999362]
[1722077400518,0.00084,68251.0,68250.0,2.23397524]
[1722077400964,0.00084,68251.0,68250.0,2.58105573]
[1722077401258,0.00084,68251.0,68250.0,2.58103048]
[1722077401451,0.00084,68251.0,68250.0,1.90531812]
[1722077401674,0.00084,68251.0,68250.0,2.87406697]
[1722077401806,0.00084,68251.0,68250.0,2.83111171]
[1722077402006,0.00084,68251.0,68250.0,2.8824839]
[1722077402229,0.00084,68251.0,68250.0,2.83111171]
[1722077402415,0.02383005,68251.0,68250.0,2.83111171]
[1722077402613,0.00084,68251.0,68250.0,2.83111171]
[1722077402896,0.00084,68251.0,68250.0,2.81711171]
[1722077403425,0.00084,68251.0,68250.0,2.80311171]
[1722077403667,0.00084,68251.0,68250.0,2.81711171]
[1722077403863,0.00084,68251.0,68250.0,2.81866591]
[1722077404072,0.00084,68251.0,68250.0,2.59607306]
[1722077404330,0.00084,68251.0,68250.0,2.71776973]
[1722077404473,0.00084,68251.0,68250.0,2.70775523]
[1722077404684,0.00084,68251.0,68250.0,2.68475523]
[1722077405011,0.00084,68251.0,68250.0,2.67075523]
[1722077405393,0.00084,68251.0,68250.0,2.59693534]
[1722077405936,0.02382947,68251.0,68250.0,2.59693534]
[1722077406253,0.02382947,68251.0,68250.0,2.66277802]
[1722077407352,0.02382947,68251.0,68250.0,2.33771698]
[1722077407593,0.02382947,68251.0,68250.0,2.66278053]
[1722077407956,0.02382947,68251.0,68250.0,2.66277079]
[1722077408378,0.02382947,68251.0,68250.0,2.33770782]
[1722077409383,0.02382947,68251.0,68250.0,2.27187556]
[1722077410545,0.02382947,68251.0,68250.0,2.27387556]
[1722077411247,0.02382947,68251.0,68250.0,2.31774626]
[1722077411445,0.02382947,68251.0,68250.0,2.31774588]
[1722077411967,0.02382947,68251.0,68250.0,2.31858296]
[1722077412170,0.02382947,68251.0,68250.0,2.31774588]
[1722077414998,0.02382947,68251.0,68250.0,2.58991147]
[1722077415218,0.02382947,68251.0,68250.0,2.91496024]
[1722077415414,0.00084,68262.0,68261.0,1.8958707]
[1722077415615,0.00084,68262.0,68261.0,2.20516006]
[1722077416157,0.00084,68262.0,68261.0,2.32688403]
[1722077416318,0.00084,68262.0,68261.0,2.61987703]
[1722077416524,0.00084,68262.0,68261.0,2.64287703]
[1722077416726,0.00084,68262.0,68261.0,2.74287703]
[1722077416906,0.00084,68262.0,68261.0,2.78673397]
[1722077417102,0.00084,68262.0,68261.0,2.49374097]
[1722077417296,0.00084,68262.0,68261.0,2.46588403]
[1722077418007,0.00084,68262.0,68261.0,2.45188403]
[1722077418240,0.00084,68262.0,68261.0,2.35816006]
[1722077418413,0.00084,68262.0,68261.0,2.47787324]
[1722077418932,0.00084,68262.0,68261.0,2.48689579]
[1722077421917,0.00084,68262.0,68261.0,2.48689557]
[1722077422453,0.00084,68262.0,68261.0,2.46389557]
[1722077422697,0.00084,68262.0,68261.0,2.01449557]
[1722077423242,0.00084,68262.0,68261.0,1.52465982]
[1722077424571,0.00084,68262.0,68261.0,1.51563727]
[1722077425327,0.00084,68262.0,68261.0,1.41563727]
[1722077427391,0.00084,68262.0,68261.0,1.53736329]
[1722077428106,0.00084,68262.0,68261.0,1.58736329]
[1722077428261,0.00084,68262.0,68261.0,1.66249308]
[1722077429047,0.00084,68262.0,68261.0,1.66249307]
[1722077430802,0.00084,68262.0,68261.0,2.26938607]
[1722077431140,0.00084,68262.0,68261.0,2.34878607]
[1722077431982,0.00084,68262.0,68261.0,2.35078607]
[1722077432736,0.00084,68262.0,68261.0,2.35078476]
[1722077433810,0.02382698,68262.0,68261.0,2.35078476]
[1722077435762,0.02382698,68262.0,68261.0,2.37378476]
[1722077436498,0.02382698,68262.0,68261.0,2.41762959]
[1722077438420,0.02382698,68262.0,68261.0,2.37377419]
[1722077438623,0.00084,68262.0,68261.0,2.37377419]
[1722077439727,0.00084,68262.0,68261.0,2.37177817]
[1722077441306,0.00084,68262.0,68261.0,2.41563357]
[1722077443341,0.02382682,68262.0,68261.0,2.41563357]
[1722077443548,0.00084,68262.0,68261.0,2.37177817]
[1722077444473,0.00084,68262.0,68261.0,2.76458369]
[1722077444681,0.00084,68262.0,68261.0,2.69880059]
[1722077445228,0.00084,68262.0,68261.0,2.7865114]
[1722077445963,0.00084,68262.0,68261.0,2.69880059]
[1722077446365,0.00084,68262.0,68261.0,2.79880059]
[1722077446570,0.00084,68262.0,68261.0,3.5679219]
[1722077446944,0.00084,68262.0,68261.0,3.86108244]
[1722077447668,0.02382546,68262.0,68261.0,3.86108244]
[1722077447872,0.00084,68262.0,68261.0,3.86108244]
[1722077448958,0.00084,68262.0,68261.0,3.86107378]
[1722077449389,0.00084,68262.0,68261.0,3.27430283]
[1722077449534,0.00084,68262.0,68261.0,3.72928422]
[1722077450355,0.00084,68262.0,68261.0,2.94931549]
[1722077450558,0.00084,68262.0,68261.0,3.2743016]
[1722077450818,0.00084,68262.0,68261.0,3.7292816]
[1722077451021,0.00084,68262.0,68261.0,3.86105268]
[1722077451221,0.00084,68262.0,68261.0,3.7292816]
[1722077452266,0.00084,68262.0,68261.0,3.2743016]
[1722077452461,0.00084,68262.0,68261.0,3.72928128]
[1722077454035,0.00084,68262.0,68261.0,3.72928007]
[1722077455747,0.02382523,68262.0,68261.0,3.72928007]
[1722077455966,0.00084,68262.0,68261.0,3.72928007]
[1722077457340,0.00084,68262.0,68261.0,3.72928095]
[1722077457546,0.00084,68262.0,68261.0,3.27430101]
[1722077458276,0.00084,68262.0,68261.0,3.72928146]
[1722077458756,0.02382557,68262.0,68261.0,3.72928146]
[1722077459398,0.02382557,68262.0,68261.0,3.86105153]
[1722077459899,0.00084,68262.0,68261.0,3.86105153]
[1722077463221,0.02382557,68262.0,68261.0,3.86105153]
[1722077463476,0.00084,68262.0,68261.0,3.86105153]
[1722077465112,0.00084,68262.0,68261.0,3.13353583]
[1722077465335,0.00084,68262.0,68261.0,2.78037831]
[1722077465576,0.00084,68262.0,68261.0,2.83800801]
[1722077466499,0.00084,68262.0,68261.0,2.48738531]
[1722077466733,0.02382582,68262.0,68261.0,2.83800801]
[1722077466967,0.02382582,68262.0,68261.0,2.48738531]
[1722077467194,0.02382582,68262.0,68261.0,3.13100101]
[1722077467895,0.00084,68262.0,68261.0,3.13100101]
[1722077468117,0.00084,68262.0,68261.0,2.80602278]
[1722077468347,0.00084,68262.0,68261.0,2.83802491]
[1722077468815,0.00084,68262.0,68261.0,3.13101791]
[1722077470652,0.00084,68262.0,68261.0,3.27461791]
[1722077471053,0.02382553,68262.0,68261.0,3.27461791]
[1722077474277,0.02382553,68262.0,68261.0,3.72960992]
[1722077474515,0.02382553,68262.0,68261.0,3.86140006]
[1722077475216,0.02382553,68262.0,68261.0,2.94961561]
[1722077475410,0.02382553,68262.0,68261.0,3.72958555]
[1722077476281,0.00084,68262.0,68261.0,3.72958555]
[1722077478751,0.00084,68262.0,68261.0,3.72957753]
[1722077479543,0.02382544,68262.0,68261.0,3.72957753]
[1722077479721,0.02382544,68262.0,68261.0,3.65997835]
[1722077479909,0.02382544,68262.0,68261.0,3.51084774]
[1722077480112,0.02382544,68262.0,68261.0,3.21785474]
[1722077480564,0.00084,68262.0,68261.0,3.51084774]
[1722077481336,0.00084,68262.0,68261.0,3.21785474]
[1722077482095,0.00084,68262.0,68261.0,2.43789297]
[1722077482316,0.00084,68262.0,68261.0,3.21786328]
[1722077483681,0.07774,68262.0,68261.0,2.4269806]
[1722077483966,0.100726,68262.0,68261.0,2.7608806]
[1722077484205,0.100726,68262.0,68261.0,2.81224108]
[1722077484784,0.07774,68262.0,68261.0,2.81224108]
[1722077485183,0.14354,68262.0,68261.0,2.81224108]
[1722077485623,0.14354,68262.0,68261.0,2.4566179]
[1722077485892,0.14354,68262.0,68261.0,2.5783614]
[1722077486522,0.14354,68262.0,68261.0,2.5803614]
[1722077487982,0.14354,68262.0,68261.0,2.5783614]
[1722077488638,0.14354,68262.0,68261.0,2.3283614]
[1722077488839,0.14354,68262.0,68261.0,2.5783614]
[1722077489244,0.14354,68262.0,68261.0,2.13163027]
[1722077489453,0.14354,68262.0,68261.0,2.5783614]
[1722077490629,0.14354,68262.0,68261.0,2.3283614]
[1722077492489,0.16652688,68262.0,68261.0,2.3283614]
[1722077492845,0.14354,68262.0,68261.0,2.3283614]
[1722077496122,0.16652693,68262.0,68261.0,2.3283614]
[1722077499942,0.16652693,68262.0,68261.0,1.70675287]
[1722077500147,0.16652693,68262.0,68261.0,1.55144638]
[1722077500351,0.16652693,68262.0,68261.0,1.24437952]
[1722077500521,0.16652693,68262.0,68261.0,1.12264427]
[1722077501053,0.14354,68262.0,68261.0,1.10864427]
[1722077501702,0.14354,68262.0,68261.0,1.12264427]
[1722077501835,0.14354,68262.0,68261.0,1.09464427]
[1722077502041,0.14354,68262.0,68261.0,0.04338]
[1722077502245,0.14961548,68262.0,68261.0,0.287776]
[1722077502485,0.14354,68262.0,68261.0,0.14128]
[1722077502684,0.14354,68262.0,68261.0,0.2399027]
[1722077502685,0.14961537,68262.0,68261.0,0.2399027]
[1722077503300,0.14961537,68262.0,68261.0,0.14128]
[1722077503539,0.14354,68262.0,68261.0,0.287776]
[1722077503747,0.1496153,68262.0,68261.0,0.3863987]
[1722077503948,0.1496153,68262.0,68261.0,0.287776]
[1722077504622,0.14354,68262.0,68261.0,0.287776]
[1722077505009,0.14354,68262.0,68261.0,0.3863987]
[1722077505342,0.14354,68262.0,68261.0,0.9723847]
[1722077507381,0.14354,68262.0,68261.0,0.6793917]
[1722077507621,0.14354,68262.0,68261.0,0.9723847]
[1722077507741,0.14354,68262.0,68261.0,1.2653777]
[1722077508352,0.16652896,68262.0,68261.0,1.2653777]
[1722077508544,0.14354,68262.0,68261.0,0.9723847]
[1722077511613,0.14354,68262.0,68261.0,1.2653777]
[1722077512223,0.07774,68262.0,68261.0,1.2653777]
[1722077515966,0.10072802,68262.0,68261.0,1.2653777]
[1722077516227,0.10072802,68262.0,68261.0,1.1814777]
[1722077516429,0.10072802,68262.0,68261.0,1.2653777]
[1722077517786,0.02382802,68262.0,68261.0,1.2653777]
[1722077519974,0.00084,68262.0,68261.0,1.2653777]
[1722077520791,0.00084,68262.0,68261.0,1.38709972]
[1722077521223,0.00084,68262.0,68261.0,1.38710318]
[1722077521456,0.00084,68262.0,68261.0,1.39600385]
[1722077521584,0.00084,68262.0,68261.0,1.47113364]
[1722077522814,0.00084,68262.0,68261.0,1.76412664]
[1722077522975,0.00084,68262.0,68261.0,1.47113364]
[1722077523184,0.02382766,68262.0,68261.0,1.76412664]
[1722077523508,0.02382766,68262.0,68261.0,1.47113364]
[1722077524746,0.00084,68262.0,68261.0,1.34940816]
[1722077524920,0.00084,68262.0,68261.0,1.4711313]
[1722077525441,0.00084,68262.0,68261.0,1.7641243]
[1722077526247,0.00084,68262.0,68261.0,2.21438387]
[1722077526500,0.00084,68262.0,68261.0,2.35848387]
[1722077526720,0.00084,68262.0,68261.0,2.40237324]
[1722077527117,0.00084,68262.0,68261.0,2.35848387]
[1722077528086,0.02382691,68262.0,68261.0,2.29708387]
[1722077528298,0.02382691,68262.0,68261.0,2.29707881]
[1722077529413,0.02382691,68262.0,68261.0,2.36293069]
[1722077531028,0.02382691,68262.0,68261.0,2.03023069]
[1722077531845,0.02382691,68262.0,68261.0,2.28024252]
[1722077532646,0.00084,68262.0,68261.0,2.28024252]
[1722077533392,0.00084,68262.0,68261.0,2.60526488]
[1722077535304,0.00084,68262.0,68261.0,2.64917898]
[1722077535536,0.00084,68262.0,68261.0,2.258295]
[1722077535750,0.00084,68262.0,68261.0,2.21438104]
[1722077535954,0.02382686,68262.0,68261.0,2.60527733]
[1722077536289,0.00084,68262.0,68261.0,2.60527733]
[1722077536485,0.02382712,68262.0,68261.0,2.60527733]
[1722077536708,0.02382712,68262.0,68261.0,2.21438104]
[1722077536885,0.02382712,68262.0,68261.0,2.60527376]
[1722077537511,0.00084,68262.0,68261.0,2.60527376]
[1722077538057,0.00084,68262.0,68261.0,2.35527376]
[1722077539009,0.00084,68262.0,68261.0,2.0302535]
[1722077539665,0.02382679,68262.0,68261.0,2.0302535]
[1722077540053,0.02382679,68262.0,68261.0,2.2802535]
[1722077540267,0.02382679,68262.0,68261.0,2.60527752]
[1722077541827,0.02382679,68262.0,68261.0,2.2143794]
[1722077542178,0.02382679,68262.0,68261.0,2.60527757]
[1722077542383,0.02382679,68262.0,68261.0,2.21438112]
[1722077542603,0.02382679,68262.0,68261.0,2.60528568]
[1722077542808,0.02382679,68262.0,68261.0,2.21438112]
[1722077543272,0.02382679,68262.0,68261.0,2.25830347]
[1722077544184,0.02382679,68262.0,68261.0,2.21438112]
[1722077545664,0.02382679,68262.0,68261.0,2.28026162]
[1722077545829,0.02382679,68262.0,68261.0,2.60528766]
[1722077546202,0.02382679,68262.0,68261.0,2.60528672]
[1722077547247,0.02382679,68262.0,68261.0,2.74868672]
[1722077547499,0.02382679,68262.0,68261.0,2.68280622]
[1722077547825,0.00084,68262.0,68261.0,2.68280622]
[1722077548638,0.00084,68262.0,68261.0,2.88838355]
[1722077548868,0.00084,68262.0,68261.0,3.28137655]
[1722077549286,0.00084,68262.0,68261.0,3.73635256]
[1722077549483,0.00084,68262.0,68261.0,3.85411356]
[1722077549828,0.00084,68262.0,68261.0,3.86803328]
[1722077549954,0.00084,68262.0,68261.0,3.73627401]
[1722077550364,0.00084,68262.0,68261.0,3.85402786]
[1722077550568,0.00084,68262.0,68261.0,3.72227401]
[1722077550785,0.00084,68262.0,68261.0,3.73627401]
[1722077551205,0.02382501,68262.0,68261.0,3.72227401]
[1722077551968,0.02382501,68262.0,68261.0,3.73627401]
[1722077552173,0.02382501,68262.0,68261.0,3.86801778]
[1722077552625,0.02382501,68262.0,68261.0,3.73627401]
[1722077553064,0.02382501,68262.0,68261.0,2.65205373]
[1722077553351,0.02382501,68262.0,68261.0,3.86799048]
[1722077553551,0.02382501,68262.0,68261.0,3.7362516]
[1722077556730,0.00084,68265.0,68264.0,2.0413927]
[1722077557039,0.00084,68265.0,68264.0,3.16917488]
[1722077557265,0.00084,68265.0,68264.0,3.51350749]
[1722077557625,0.00084,68265.0,68264.0,3.46215488]
[1722077557849,0.00084,68265.0,68264.0,3.47615488]
[1722077558084,0.00084,68265.0,68264.0,3.49015488]
[1722077560090,0.00084,68265.0,68264.0,3.49012991]
[1722077561228,0.00084,68265.0,68264.0,3.10710172]
[1722077561425,0.00084,68265.0,68264.0,2.87320758]
[1722077561624,0.00084,68265.0,68264.0,2.78930758]
[1722077561820,0.00084,68265.0,68264.0,2.98096375]
[1722077562049,0.00084,68265.0,68264.0,2.98296375]
[1722077562648,0.00084,68265.0,68264.0,2.98096375]
[1722077563601,0.02382473,68265.0,68264.0,2.98099568]
[1722077564712,0.00084,68265.0,68264.0,2.98099568]
[1722077566532,0.00084,68265.0,68264.0,2.95905407]
[1722077566730,0.00084,68265.0,68264.0,2.96699568]
[1722077566871,0.00084,68265.0,68264.0,2.95299568]
[1722077567079,0.00084,68265.0,68264.0,2.95300868]
[1722077567281,0.00084,68265.0,68264.0,2.87124568]
[1722077567739,0.00084,68265.0,68264.0,2.87324568]
[1722077567898,0.0238248,68265.0,68264.0,3.10715532]
[1722077568107,0.0238248,68265.0,68264.0,3.19035532]
[1722077568308,0.0238248,68265.0,68264.0,3.72566616]
[1722077568829,0.00084,68265.0,68264.0,3.72566616]
[1722077569273,0.00084,68265.0,68264.0,3.78986616]
[1722077569419,0.00084,68265.0,68264.0,3.78984451]
[1722077569642,0.00084,68265.0,68264.0,2.87819478]
[1722077569813,0.00084,68265.0,68264.0,3.78984451]
[1722077571236,0.02382466,68265.0,68264.0,3.78984451]
[1722077572238,0.00084,68265.0,68264.0,3.34946451]
[1722077572435,0.00084,68265.0,68264.0,2.57823534]
[1722077572953,0.00084,68265.0,68264.0,2.58023534]
[1722077573543,0.00084,68265.0,68264.0,2.57823534]
[1722077574317,0.00084,68265.0,68264.0,2.13157227]
[1722077574514,0.02382508,68265.0,68264.0,2.57827186]
[1722077575700,0.00084,68265.0,68264.0,2.57827186]
[1722077576515,0.00084,68265.0,68264.0,2.81218916]
[1722077576929,0.00084,68265.0,68264.0,2.7608323]
[1722077577930,0.00084,68265.0,68264.0,2.76082193]
[1722077578153,0.00084,68265.0,68264.0,2.81217798]
[1722077578391,0.00084,68265.0,68264.0,2.76082193]
[1722077579225,0.00084,68265.0,68264.0,2.76282193]
[1722077580157,0.00084,68265.0,68264.0,2.84602193]
[1722077581468,0.00084,68265.0,68264.0,2.54175955]
[1722077581618,0.00084,68265.0,68264.0,2.84601128]
[1722077582980,0.02382493,68265.0,68264.0,2.84601128]
[1722077583182,0.00084,68265.0,68264.0,2.84601128]
[1722077585026,0.00084,68265.0,68264.0,2.5210295]
[1722077585199,0.00084,68265.0,68264.0,2.84601128]
[1722077586528,0.02382485,68265.0,68264.0,2.84601128]
[1722077587252,0.00084,68265.0,68264.0,2.84601128]
[1722077588342,0.00084,68265.0,68264.0,3.3009849]
[1722077588542,0.00084,68265.0,68264.0,3.20019128]
[1722077588748,0.00084,68265.0,68264.0,3.655163]
[1722077588952,0.00084,68265.0,68264.0,3.78698819]
[1722077590376,0.00084,68265.0,68264.0,3.655163]
[1722077590730,0.02382472,68265.0,68264.0,3.655163]
[1722077595191,0.02382472,68265.0,68264.0,3.3045403]
[1722077595355,0.02382472,68265.0,68264.0,3.655163]
[1722077595781,0.02382472,68265.0,68264.0,3.6551597]
[1722077596393,0.02382472,68265.0,68264.0,3.84999747]
[1722077596639,0.02382472,68265.0,68264.0,3.6551597]
[1722077597048,0.02382472,68265.0,68264.0,3.84999747]
[1722077599279,0.02382472,68265.0,68264.0,2.57095227]
[1722077599480,0.02382472,68265.0,68264.0,3.84992524]
[1722077600892,0.0806,68276.0,68275.0,0.3244687]
[1722077601095,0.0806,68276.0,68275.0,1.84115288]
[1722077601248,0.0806,68276.0,68275.0,2.42701688]
[1722077601882,0.00084,68277.0,68276.0,1.7167987]
[1722077602089,0.00084,68277.0,68276.0,2.43105482]
[1722077602294,0.00084,68277.0,68276.0,2.63602688]
[1722077602495,0.00084,68277.0,68276.0,2.65902688]
[1722077602740,0.00084,68277.0,68276.0,2.3340626]
[1722077603082,0.00084,68277.0,68276.0,2.65900213]
[1722077603468,0.00084,68277.0,68276.0,2.67300213]
[1722077603953,0.00084,68277.0,68276.0,2.68700213]
[1722077604160,0.00084,68277.0,68276.0,2.67300213]
[1722077604294,0.00084,68277.0,68276.0,2.68700213]
[1722077604295,0.02382322,68277.0,68276.0,2.68700213]
[1722077605318,0.02382322,68277.0,68276.0,2.79691903]
[1722077606336,0.02382322,68277.0,68276.0,2.24925933]
[1722077606588,0.02382322,68277.0,68276.0,2.80580818]
[1722077606589,0.00084,68277.0,68276.0,2.80580818]
[1722077609930,0.02382321,68277.0,68276.0,2.37094932]
[1722077610244,0.02382321,68277.0,68276.0,2.8057927]
[1722077610812,0.02382321,68277.0,68276.0,2.69589666]
[1722077613231,0.02382321,68277.0,68276.0,2.69789666]
[1722077613576,0.02382321,68277.0,68276.0,2.83789475]
[1722077614047,0.02382321,68277.0,68276.0,2.83589475]
[1722077614485,0.02382321,68277.0,68276.0,3.06977028]
[1722077614689,0.0815,68283.0,68282.0,1.8299617]
[1722077614998,0.0815,68283.0,68282.0,2.42685669]
[1722077615201,0.0815,68283.0,68282.0,2.42885669]
[1722077615444,0.0815,68283.0,68282.0,2.49477597]
[1722077615852,0.0815,68283.0,68282.0,2.49277597]
[1722077616257,0.0815,68283.0,68282.0,2.50677597]
[1722077616655,0.0815,68283.0,68282.0,2.52077597]
[1722077617095,0.0815,68283.0,68282.0,2.52074783]
[1722077617292,0.0815,68283.0,68282.0,2.19581746]
[1722077617901,0.0815,68283.0,68282.0,1.94581746]
[1722077618225,0.0815,68283.0,68282.0,2.19581746]
[1722077618379,0.0815,68283.0,68282.0,2.52074741]
[1722077618547,0.0815,68283.0,68282.0,2.45483485]
[1722077619165,0.0815,68283.0,68282.0,2.52073275]
[1722077619947,0.10448208,68283.0,68282.0,2.52073275]
[1722077620075,0.0815,68283.0,68282.0,2.52073275]
[1722077620552,0.0815,68283.0,68282.0,2.52072738]
[1722077620979,0.0815,68283.0,68282.0,2.45483114]
[1722077621183,0.0815,68283.0,68282.0,2.52072718]
[1722077621760,0.0815,68283.0,68282.0,2.18682718]
[1722077622163,0.0815,68283.0,68282.0,2.20483114]
[1722077623351,0.10448208,68283.0,68282.0,2.20483114]
[1722077623994,0.10448208,68283.0,68282.0,1.75822127]
[1722077624197,0.10448208,68283.0,68282.0,1.77802356]
[1722077624426,0.16718208,68283.0,68282.0,1.58092671]
[1722077624661,0.1442,68283.0,68282.0,1.53700026]
[1722077624844,0.1442,68283.0,68282.0,1.58092684]
[1722077627328,0.1442,68283.0,68282.0,1.41531927]
[1722077627532,0.1442,68283.0,68282.0,1.58093596]
[1722077627984,0.1442,68283.0,68282.0,1.92783377]
[1722077627985,0.0815,68283.0,68282.0,1.92783377]
[1722077628189,0.0815,68283.0,68282.0,1.86193985]
[1722077629396,0.10448219,68283.0,68282.0,1.92783284]
[1722077629637,0.0815,68283.0,68282.0,1.53700668]
[1722077629805,0.0815,68283.0,68282.0,1.53700354]
[1722077630007,0.1442,68283.0,68282.0,1.58093351]
[1722077631232,0.1442,68283.0,68282.0,1.58093839]
[1722077631878,0.16718219,68283.0,68282.0,1.58093839]
[1722077632039,0.16718219,68283.0,68282.0,1.49703839]
[1722077632282,0.16718219,68283.0,68282.0,1.53700679]
[1722077632655,0.16802219,68283.0,68282.0,1.53700679]
[1722077633855,0.14504,68283.0,68282.0,1.53700679]
[1722077634605,0.14504,68283.0,68282.0,1.38674722]
[1722077635992,0.14504,68283.0,68282.0,1.60290419]
[1722077636218,0.08234,68283.0,68282.0,1.60290419]
[1722077636800,0.10532219,68283.0,68282.0,1.60290419]
[1722077637346,0.10532219,68283.0,68282.0,1.92784406]
[1722077638087,0.10532219,68283.0,68282.0,1.92786815]
[1722077638317,0.02382219,68283.0,68282.0,1.92786815]
[1722077639766,0.02382219,68283.0,68282.0,1.82924545]
[1722077639955,0.02382219,68283.0,68282.0,1.92786815]
[1722077640396,0.02382219,68283.0,68282.0,1.76332402]
[1722077640595,0.02382219,68283.0,68282.0,1.86194672]
[1722077640944,0.02382219,68283.0,68282.0,1.97181577]
[1722077641798,0.02382219,68283.0,68282.0,1.97182805]
[1722077644382,0.02382219,68283.0,68282.0,1.94986302]
[1722077645031,0.00084,68283.0,68282.0,1.94986302]
[1722077645237,0.00084,68283.0,68282.0,1.94988193]
[1722077647240,0.00084,68283.0,68282.0,1.86194608]
[1722077648507,0.02382174,68283.0,68282.0,1.86194608]
[1722077649240,0.02382174,68283.0,68282.0,1.76332338]
[1722077649391,0.02382174,68283.0,68282.0,1.86194608]
[1722077649555,0.00084,68283.0,68282.0,1.97186589]
[1722077651617,0.00084,68283.0,68282.0,1.86194608]
[1722077652022,0.00084,68283.0,68282.0,1.76332338]
[1722077652229,0.00084,68283.0,68282.0,1.86194608]
[1722077652457,0.00084,68283.0,68282.0,1.86193061]
[1722077653134,0.0238217,68283.0,68282.0,1.76330791]
[1722077653491,0.00084,68283.0,68282.0,1.86193061]
[1722077653713,0.00084,68283.0,68282.0,1.76330791]
[1722077653938,0.00084,68283.0,68282.0,1.86193061]
[1722077655789,0.00084,68283.0,68282.0,1.41531927]
[1722077655963,0.00084,68283.0,68282.0,1.86193058]
[1722077659475,0.00084,68283.0,68282.0,1.86192979]
[1722077661335,0.02382157,68283.0,68282.0,1.86192979]
[1722077661569,0.00084,68283.0,68282.0,1.86192979]
[1722077662881,0.00084,68283.0,68282.0,1.7402471]
[1722077663120,0.00084,68283.0,68282.0,1.86192124]
[1722077664256,0.00084,68283.0,68282.0,1.93912124]
[1722077664705,0.00084,68283.0,68282.0,2.23202324]
[1722077664959,0.02382148,68283.0,68282.0,2.23202324]
[1722077665510,0.02382148,68283.0,68282.0,2.28202324]
[1722077665714,0.02382148,68283.0,68282.0,2.33202324]
[1722077665917,0.02382148,68283.0,68282.0,2.8342864]
[1722077666217,0.02382148,68283.0,68282.0,3.26081731]
[1722077666380,0.02382148,68283.0,68282.0,2.95661942]
[1722077666623,0.02382148,68283.0,68282.0,3.26071128]
[1722077666801,0.02382148,68283.0,68282.0,3.24671128]
[1722077667497,0.02382148,68283.0,68282.0,3.26071128]
[1722077667940,0.02382148,68283.0,68282.0,3.55361328]
[1722077668340,0.02382148,68283.0,68282.0,3.26071128]
[1722077669299,0.00084,68283.0,68282.0,3.26071128]
[1722077670146,0.00084,68283.0,68282.0,3.26072154]
[1722077672617,0.02382023,68283.0,68282.0,3.26072154]
[1722077673243,0.02382023,68283.0,68282.0,3.3925358]
[1722077673654,0.02382023,68283.0,68282.0,3.68543779]
[1722077673834,0.00084,68283.0,68282.0,3.68543779]
[1722077674353,0.00084,68283.0,68282.0,3.39253579]
[1722077677237,0.02382019,68283.0,68282.0,3.39251365]
[1722077677675,0.02382019,68283.0,68282.0,3.68541565]
[1722077677805,0.00084,68283.0,68282.0,3.39251365]
[1722077678223,0.00084,68283.0,68282.0,3.68541565]
[1722077679279,0.00084,68283.0,68282.0,3.33479295]
[1722077679784,0.00084,68283.0,68282.0,3.68541565]
[1722077679988,0.00084,68283.0,68282.0,3.78541565]
[1722077680804,0.00084,68283.0,68282.0,3.78539566]
[1722077681787,0.00084,68283.0,68282.0,3.78539339]
[1722077685413,0.02381971,68283.0,68282.0,3.78539339]
[1722077685806,0.00084,68283.0,68282.0,3.78539339]
[1722077687842,0.00084,68283.0,68282.0,3.78539017]
[1722077689045,0.02381971,68283.0,68282.0,3.78539017]
[1722077689823,0.02381971,68283.0,68282.0,3.48122227]
[1722077690079,0.02381971,68283.0,68282.0,3.78538844]
[1722077691054,0.02381971,68283.0,68282.0,2.87389117]
[1722077691243,0.02381971,68283.0,68282.0,3.78538825]
[1722077691644,0.02381971,68283.0,68282.0,3.78539236]
[1722077693385,0.02381971,68283.0,68282.0,3.49249036]
[1722077693585,0.00084,68283.0,68282.0,3.49249036]
[1722077694030,0.00084,68283.0,68282.0,3.78539236]
[1722077694264,0.00084,68283.0,68282.0,3.49249036]
[1722077694670,0.00084,68283.0,68282.0,3.71899236]
[1722077695170,0.00084,68283.0,68282.0,3.71900991]
[1722077695359,0.00084,68283.0,68282.0,3.71901669]
[1722077695502,0.00084,68283.0,68282.0,3.36839399]
[1722077695704,0.00084,68283.0,68282.0,3.71901669]
[1722077696509,0.02381986,68283.0,68282.0,3.71901669]
[1722077696912,0.00084,68283.0,68282.0,3.71901669]
[1722077697523,0.00084,68283.0,68282.0,3.42411469]
[1722077697731,0.00084,68283.0,68282.0,3.34691469]
[1722077698148,0.00084,68283.0,68282.0,3.63981669]
[1722077698385,0.00084,68283.0,68282.0,3.21511646]
[1722077698844,0.00084,68283.0,68282.0,3.34693621]
[1722077699044,0.00084,68283.0,68282.0,3.34893621]
[1722077699299,0.00084,68283.0,68282.0,2.78259376]
[1722077699507,0.00084,68283.0,68282.0,2.96511646]
[1722077699681,0.00084,68283.0,68282.0,3.65101846]
[1722077700263,0.02381977,68283.0,68282.0,3.78283821]
[1722077700486,0.02381977,68283.0,68282.0,3.65101846]
[1722077701310,0.00084,68283.0,68282.0,3.65101846]
[1722077702012,0.00084,68283.0,68282.0,3.5293513]
[1722077702213,0.00084,68283.0,68282.0,3.65101846]
[1722077704761,0.02381977,68283.0,68282.0,3.65101846]
[1722077710579,0.02003362,68283.0,68282.0,3.65101846]
[1722077710765,0.07934,68291.0,68290.0,1.4959087]
[1722077710967,0.07934,68291.0,68290.0,2.41046244]
[1722077711208,0.07934,68291.0,68290.0,2.1766218]
[1722077712432,0.10231893,68291.0,68290.0,2.41046238]
[1722077712836,0.10231893,68291.0,68290.0,2.4244603]
[1722077713676,0.10231893,68291.0,68290.0,2.4384603]